bitfinex/quotes_ETHUSD_20220117
["timestamp","ask_amount","ask_price","bid_price","bid_amount"]
[1642426897392,0.00682108,3269.7,3269.0,4.3544]
[1642426897794,0.00625266,3269.6,3269.0,4.3544]
[1642426898192,0.00568423,3269.5,3269.0,4.3544]
[1642426898394,1.54565393,3269.4,3269.0,4.3544]
[1642426898594,1.85076974,3269.4,3268.7,2.65485262]
[1642426898795,1.85076974,3269.4,3268.7,2.95485262]
[1642426898796,0.00454739,3269.3,3268.7,2.95485262]
[1642426899195,0.00397896,3269.2,3268.7,2.95485262]
[1642426899594,0.00341054,3269.1,3268.7,1.51918983]
[1642426900039,0.00284212,3269.0,3268.7,1.51918983]
[1642426900240,0.00284212,3269.0,3268.7,1.21918983]
[1642426900441,0.00227369,3268.9,3268.7,1.21918983]
[1642426900843,0.00170527,3268.8,3268.3,5.66722997]
[1642426901047,0.00170527,3268.8,3268.3,4.3859]
[1642426901244,0.00113685,3268.7,3268.3,4.3859]
[1642426901643,0.00454739,3269.3,3268.3,4.3859]
[1642426901844,1.35974801,3268.9,3268.3,5.64393855]
[1642426902048,0.76488,3268.8,3268.3,2.38423855]
[1642426902245,0.3,3268.7,3268.3,1.25803855]
[1642426902450,0.30113685,3268.7,3268.0,2.34779634]
[1642426902845,0.30113685,3268.7,3268.1,0.00227369]
[1642426903447,0.00113685,3268.7,3268.1,0.00227369]
[1642426903888,0.00113685,3268.7,3268.1,3.2504229]
[1642426904089,0.00113685,3268.7,3268.1,0.41721624]
[1642426904289,0.00113685,3268.7,3268.2,0.00170527]
[1642426904489,0.00113685,3268.7,3268.3,1.41935721]
[1642426905589,0.00113685,3268.7,3268.3,2.18396271]
[1642426905788,0.00113685,3268.7,3268.3,1.41935721]
[1642426906794,0.00113685,3268.7,3268.4,0.41494255]
[1642426907644,0.00113685,3268.7,3268.3,1.41935721]
[1642426908443,0.00113685,3268.7,3268.2,0.00170527]
[1642426908843,0.00113685,3268.7,3268.1,0.00227369]
[1642426909645,0.00113685,3268.7,3268.2,1.20051618]
[1642426910045,0.00113685,3268.7,3268.3,0.00113685]
[1642426910446,0.76595685,3268.7,3268.3,0.00113685]
[1642426910644,0.3,3268.6,3268.2,0.00170527]
[1642426910944,0.3,3268.6,3268.1,0.00227369]
[1642426911591,0.3,3268.6,3268.1,0.3876931]
[1642426911991,0.3,3268.6,3268.2,0.00170527]
[1642426915047,0.3,3268.6,3268.2,0.38712468]
[1642426915449,0.3,3268.6,3268.3,0.00113685]
[1642426918553,0.3,3268.6,3268.2,0.00170527]
[1642426921596,3.65911034,3268.6,3268.2,0.00170527]
[1642426921795,3.95911034,3268.6,3268.2,0.00170527]
[1642426922449,1.31134806,3267.7,3267.3,1.51188574]
[1642426922643,4.537243,3268.3,3267.3,1.51188574]
[1642426922840,4.537243,3268.3,3267.6,0.00341054]
[1642426922841,0.3,3267.7,3267.6,0.00341054]
[1642426923043,0.3,3268.3,3267.6,0.00341054]
[1642426923441,2.27,3268.4,3267.5,0.00397897]
[1642426924242,3.24809899,3268.3,3267.5,0.00397897]
[1642426924443,0.76499,3267.8,3267.5,0.00397897]
[1642426924644,1.47275581,3267.9,3267.5,0.00397897]
[1642426924945,1.77275581,3267.9,3267.2,0.00568424]
[1642426927094,2.53772581,3267.9,3267.2,0.00568424]
[1642426927693,1.77275581,3267.9,3267.2,0.00568424]
[1642426929696,1.50359175,3267.4,3267.2,0.00568424]
[1642426930146,0.3,3267.4,3267.2,0.00568424]
[1642426930547,1.1345,3268.2,3267.2,0.00568424]
[1642426930949,1.7345,3268.2,3267.2,0.00568424]
[1642426932551,0.76499,3268.1,3267.2,0.00568424]
[1642426932953,0.3,3268.0,3267.2,0.00568424]
[1642426933152,1.28552234,3267.6,3267.2,0.00568424]
[1642426933452,0.3,3267.5,3267.0,0.00682108]
[1642426937100,0.3,3267.5,3266.9,0.00738951]
[1642426937101,4.72884838,3267.5,3266.9,0.00738951]
[1642426937300,4.72884838,3267.5,3266.6,2.51188574]
[1642426937301,4.72884838,3267.5,3266.8,0.00795793]
[1642426937565,4.72884838,3267.5,3266.7,0.00852635]
[1642426937765,1.35467526,3267.0,3266.7,0.00852635]
[1642426938168,1.65467526,3267.0,3266.7,0.00852635]
[1642426938366,1.97667526,3267.0,3266.7,0.00852635]
[1642426939369,1.65467526,3267.0,3266.5,0.0096632]
[1642426939570,1.65467526,3267.0,3266.4,0.01023162]
[1642426939968,1.65467526,3267.0,3266.3,0.01080005]
[1642426941204,1.65467526,3267.0,3266.2,0.31136847]
[1642426941398,1.65467526,3267.0,3266.4,1.53183381]
[1642426941593,0.3,3267.0,3266.4,1.53183381]
[1642426941798,0.3,3267.0,3266.5,0.0096632]
[1642426941998,1.4966,3267.3,3266.5,0.0096632]
[1642426942597,1.4966,3267.3,3266.5,0.3062224]
[1642426942800,0.3,3267.3,3266.5,3.64273477]
[1642426943001,2.5903586,3268.0,3267.9,1.26890566]
[1642426943397,2.5903586,3268.0,3267.9,1.27061093]
[1642426944197,2.8903586,3268.0,3267.9,1.27061093]
[1642426944399,0.3,3268.0,3267.9,1.27061093]
[1642426944798,1.47655746,3268.5,3267.9,1.27061093]
[1642426945054,0.3,3268.4,3267.9,1.27061093]
[1642426945352,0.30113685,3268.4,3268.0,0.00113685]
[1642426947056,2.39827164,3268.3,3268.0,0.00113685]
[1642426951604,2.39827164,3268.3,3268.0,0.20002477]
[1642426952207,2.39827164,3268.3,3268.0,0.00113685]
[1642426952441,3.28822871,3268.2,3268.0,0.00113685]
[1642426952646,3.39635496,3268.2,3267.5,0.00397897]
[1642426953046,3.69635496,3268.2,3267.5,0.00397897]
[1642426953347,12.75,3268.0,3267.4,6.689e-05]
[1642426953545,5.71409758,3267.9,3267.4,6.689e-05]
[1642426953745,5.71637128,3267.9,3267.4,6.689e-05]
[1642426953945,0.60170527,3267.8,3266.8,1.51188574]
[1642426954149,3.83471314,3267.7,3266.6,1.24006358]
[1642426954354,1.45341074,3267.2,3266.9,0.00341054]
[1642426954547,0.3,3267.2,3266.9,0.00341054]
[1642426954747,4.99754999,3267.7,3266.9,0.00341054]
[1642426955547,1.3671686,3267.3,3266.9,0.00341054]
[1642426955752,3.26862536,3267.2,3266.9,0.00341054]
[1642426955949,1.6671686,3267.3,3266.9,0.00341054]
[1642426956195,4.99832154,3267.3,3266.7,0.00454738]
[1642426956396,4.99832154,3267.3,3266.5,0.00568423]
[1642426956800,1.43663524,3266.7,3266.5,0.00568423]
[1642426957604,1.43663524,3266.7,3266.4,0.00625265]
[1642426957605,2.99673524,3266.7,3266.4,0.00625265]
[1642426957802,2.99673524,3266.7,3266.1,0.00795792]
[1642426959405,1.22152669,3266.2,3266.1,0.00795792]
[1642426959805,1.52152669,3266.2,3266.1,0.00795792]
[1642426962253,1.48076295,3266.2,3266.1,0.00795792]
[1642426963250,11.23076295,3266.2,3266.1,0.00795792]
[1642426963453,14.65571486,3266.2,3266.1,0.00795792]
[1642426964498,1.51618925,3266.2,3266.1,0.00795792]
[1642426964997,0.29466256,3266.2,3266.1,0.00795792]
[1642426965397,0.0354263,3266.2,3266.1,0.00795792]
[1642426969448,0.3454263,3266.2,3266.1,0.00795792]
[1642426970852,3.78552144,3266.2,3266.1,0.00795792]
[1642426971050,4.08552144,3266.2,3266.1,0.00795792]
[1642426971293,5.7454263,3266.2,3266.1,0.00795792]
[1642426973097,0.6454263,3266.2,3266.1,0.00795792]
[1642426973297,0.3454263,3266.2,3266.1,0.00795792]
[1642426977147,5.4454263,3266.2,3266.1,0.00795792]
[1642426977347,5.7454263,3266.2,3266.1,0.00795792]
[1642426978793,0.6454263,3266.2,3266.1,0.00795792]
[1642426978994,0.3454263,3266.2,3266.1,0.00795792]
[1642426979998,8.1454263,3266.2,3266.1,0.00795792]
[1642426980598,8.4454263,3266.2,3266.1,0.00795792]
[1642426981100,0.6454263,3266.2,3266.1,0.00795792]
[1642426981297,0.3454263,3266.2,3266.1,0.00795792]
[1642426982001,6.1454263,3266.2,3266.1,0.00795792]
[1642426982203,6.4454263,3266.2,3266.1,0.00795792]
[1642426985958,14.2454263,3266.2,3266.1,0.00795792]
[1642426987798,14.2454263,3266.2,3266.0,0.122379]
[1642426988002,15.0110163,3266.2,3266.0,0.122379]
[1642426988400,18.41569628,3266.1,3266.0,0.122379]
[1642426988799,18.41569628,3266.1,3266.0,0.13090535]
[1642426989201,15.8,3266.1,3266.0,0.13090535]
[1642426989603,16.6535,3266.1,3266.0,0.13090535]
[1642426990058,18.1,3265.9,3264.8,1.0]
[1642426990260,18.1,3265.9,3264.6,3.743]
[1642426990261,0.76577,3265.7,3264.6,3.743]
[1642426990458,0.76577,3265.7,3264.9,0.00625266]
[1642426990459,0.44,3265.6,3264.9,0.00625266]
[1642426990853,0.44,3265.6,3264.3,4.84554478]
[1642426990854,0.44,3265.6,3264.4,0.00909477]
[1642426991057,1.52383279,3264.8,3264.4,0.00909477]
[1642426991255,1.82383279,3264.8,3264.4,0.00909477]
[1642426992454,1.82383279,3264.8,3264.0,1.27758597]
[1642426992455,1.82383279,3264.8,3264.3,0.0096632]
[1642426992660,1.82383279,3264.8,3264.1,0.01080004]
[1642426993059,0.3,3264.8,3264.1,0.01080004]
[1642426993460,0.3,3265.1,3264.1,0.01080004]
[1642426993697,0.3,3265.1,3264.0,2.23838601]
[1642426993898,0.00511581,3265.0,3264.0,2.23838601]
[1642426994296,0.00454738,3264.9,3264.0,2.23838601]
[1642426994498,0.00454738,3264.9,3264.5,1.49532815]
[1642426994697,0.00397896,3264.8,3264.5,1.49532815]
[1642426995097,0.00341054,3264.7,3264.5,1.49532815]
[1642426995499,7.8621,3265.6,3264.5,1.79532815]
[1642426995500,0.00284211,3264.6,3264.5,1.79532815]
[1642426995905,0.00284211,3264.6,3264.5,21.90172655]
[1642426996099,0.00284211,3264.6,3264.5,22.90172655]
[1642426996802,0.00284211,3264.6,3264.5,23.66723245]
[1642426997203,0.00284211,3264.6,3264.5,24.43079378]
[1642426998553,0.00284211,3264.6,3264.5,24.13079378]
[1642426999549,0.00284211,3264.6,3264.5,24.43079378]
[1642426999747,7.9929,3266.2,3264.6,18.85]
[1642426999748,9.1669,3266.2,3264.6,18.85]
[1642426999952,4.128,3266.2,3265.3,0.01281133]
[1642427000151,0.00852636,3266.1,3265.4,0.07034762]
[1642427000350,0.00852636,3266.1,3265.3,0.01281133]
[1642427000553,0.00795793,3266.0,3265.4,0.054335]
[1642427000751,0.00795793,3266.0,3265.9,1.18028777]
[1642427000952,0.31,3266.2,3265.3,3.61693855]
[1642427000953,0.00738951,3265.9,3265.3,3.61693855]
[1642427001202,0.00795793,3266.0,3265.4,1.0]
[1642427001397,0.31,3266.2,3265.5,3.16491441]
[1642427001398,0.00682109,3265.8,3265.5,3.16491441]
[1642427001696,0.00738951,3265.9,3265.6,1.0]
[1642427001898,0.00625266,3265.7,3265.2,3.62068481]
[1642427002099,0.00682109,3265.8,3265.3,1.0]
[1642427002297,0.31,3266.2,3265.3,1.0]
[1642427002298,0.00568424,3265.6,3265.4,3.34376047]
[1642427002499,1.26523896,3265.9,3265.2,3.22660363]
[1642427002500,0.00625266,3265.7,3265.2,3.22660363]
[1642427002700,0.00511582,3265.5,3265.3,1.0]
[1642427002901,0.00568424,3265.6,3265.1,1.0]
[1642427003100,0.00454739,3265.4,3265.0,1.0]
[1642427003500,1.56523896,3265.9,3265.0,1.0]
[1642427003501,1.24981052,3265.3,3265.0,1.0]
[1642427003709,1.24981052,3265.3,3264.9,1.51188574]
[1642427004002,0.00341054,3265.2,3264.9,1.51188574]
[1642427004402,1.54583155,3265.3,3264.3,4.8535]
[1642427004403,0.00284212,3265.1,3264.5,1.51188574]
[1642427004602,0.00284212,3265.1,3264.5,2.51188574]
[1642427004801,1.54583155,3265.3,3264.5,2.51188574]
[1642427004802,0.0022737,3265.0,3264.5,2.51188574]
[1642427005270,0.00170527,3264.9,3264.5,2.51188574]
[1642427005471,1.11303511,3264.8,3264.5,2.51188574]
[1642427005671,1.11303511,3264.8,3264.1,4.1061]
[1642427005672,1.11417196,3264.8,3264.1,4.1061]
[1642427005872,1.41417196,3264.8,3264.1,4.1061]
[1642427006072,4.75193754,3264.8,3264.2,1.00227369]
[1642427006472,1.41417196,3264.8,3264.3,0.00170527]
[1642427006672,4.68704577,3264.8,3264.3,0.00170527]
[1642427006872,4.68704577,3264.8,3264.4,1.48568791]
[1642427006873,1.41417196,3264.8,3264.4,1.48568791]
[1642427007972,1.41417196,3264.8,3264.3,0.00170527]
[1642427008575,4.72039961,3264.8,3264.3,0.00170527]
[1642427008815,1.41417196,3264.8,3264.3,0.00170527]
[1642427009614,2.61774738,3264.7,3264.3,0.00170527]
[1642427010217,3.27841191,3264.6,3264.3,0.00170527]
[1642427010417,4.04431191,3264.6,3264.3,0.00170527]
[1642427010619,0.3,3264.5,3264.3,0.00170527]
[1642427010820,0.6,3264.5,3264.3,0.00170527]
[1642427011021,1.11450994,3263.9,3263.5,0.00625265]
[1642427011218,1.11450994,3263.9,3263.5,1.34941071]
[1642427011422,1.41450994,3263.9,3263.5,0.00625265]
[1642427011621,1.41450994,3263.9,3263.6,0.00568423]
[1642427011816,1.41450994,3263.9,3263.5,0.00625265]
[1642427012318,1.41450994,3263.9,3263.4,0.00682108]
[1642427013554,3.34780827,3263.8,3263.4,0.00682108]
[1642427013958,1.29901559,3263.4,3263.3,0.0073895]
[1642427014155,1.29901559,3263.4,3263.2,0.00795792]
[1642427014356,1.59901559,3263.4,3263.2,0.00795792]
[1642427014554,0.3,3263.4,3263.2,0.00795792]
[1642427014954,0.74,3263.7,3263.1,0.00852635]
[1642427015154,0.44,3263.7,3263.1,0.00852635]
[1642427015754,1.56124924,3263.7,3263.1,0.00852635]
[1642427016220,1.86124924,3263.7,3263.1,0.00852635]
[1642427018121,1.36337807,3263.2,3263.1,0.00852635]
[1642427018521,1.66337807,3263.2,3263.1,0.00852635]
[1642427019320,0.3,3263.2,3263.1,0.00852635]
[1642427019519,0.76614,3263.5,3263.1,0.00852635]
[1642427019720,1.06614,3263.5,3263.1,0.00852635]
[1642427021157,0.3,3263.5,3263.1,0.00852635]
[1642427021553,0.44,3263.7,3263.1,0.00852635]
[1642427022558,0.27639994,3264.5,3263.5,1.23216787]
[1642427022756,0.00113685,3264.8,3263.6,0.01232652]
[1642427022956,0.00113685,3264.8,3263.6,0.01801075]
[1642427023156,0.00113685,3264.8,3263.7,0.00511581]
[1642427024005,1.47253366,3264.6,3263.9,1.4959388]
[1642427024206,1.77253366,3264.6,3264.0,1.36209682]
[1642427024410,1.77253366,3264.6,3264.0,1.36550736]
[1642427024605,1.77253366,3264.6,3264.1,0.00284211]
[1642427025006,0.3,3264.6,3264.1,0.00284211]
[1642427025407,0.00113685,3264.8,3264.1,0.00284211]
[1642427025907,0.02400934,3264.3,3264.1,0.00284211]
[1642427029358,0.02400934,3264.3,3263.8,0.00454738]
[1642427030158,0.02400934,3264.3,3263.8,1.37810406]
[1642427030560,0.02400934,3264.3,3263.9,0.00397896]
[1642427030761,1.20700756,3264.2,3263.9,0.00397896]
[1642427030960,1.20700756,3264.2,3263.7,0.00511581]
[1642427031199,1.50700756,3264.2,3263.7,0.00511581]
[1642427031804,1.50700756,3264.2,3263.5,0.00625265]
[1642427032005,1.50700756,3264.2,3263.5,1.00625265]
[1642427032407,1.50700756,3264.2,3263.6,0.00568423]
[1642427033206,1.50700756,3264.2,3263.5,0.00625265]
[1642427034208,1.50700756,3264.2,3263.5,1.00625265]
[1642427034610,1.12632601,3263.7,3263.6,0.00568423]
[1642427034818,1.79562601,3263.7,3263.6,0.00568423]
[1642427035074,1.79562601,3263.7,3263.0,1.6883]
[1642427035075,2.09562601,3263.7,3263.5,0.00625265]
[1642427035472,2.09562601,3263.7,3263.1,0.00852635]
[1642427036672,2.39562601,3263.7,3263.1,0.00852635]
[1642427036972,1.72632601,3263.7,3263.1,0.00852635]
[1642427037377,1.5323,3263.5,3263.1,0.00852635]
[1642427037772,2.49246601,3263.7,3263.1,0.00852635]
[1642427037978,0.3,3263.5,3263.1,0.00852635]
[1642427038175,0.44,3263.4,3263.1,0.00852635]
[1642427038474,3.37113139,3263.3,3263.1,0.00852635]
[1642427038701,0.44,3263.2,3263.1,0.00852635]
[1642427038901,1.57581791,3263.2,3263.1,0.00852635]
[1642427039103,1.87581791,3263.2,3263.1,0.00852635]
[1642427044959,1.87581791,3263.2,3263.0,0.5]
[1642427045261,2.64199791,3263.2,3263.0,0.5]
[1642427045656,1.50618,3263.2,3263.0,0.5]
[1642427045858,0.3,3263.2,3263.0,0.5]
[1642427046055,0.44,3263.6,3263.0,0.5]
[1642427046495,0.0022737,3263.5,3263.0,0.5]
[1642427046895,0.00170527,3263.4,3263.0,0.5]
[1642427047300,0.00113685,3263.3,3263.0,0.5]
[1642427048601,0.00113685,3263.3,3263.0,0.4]
[1642427061308,0.76727685,3263.3,3263.0,0.4]
[1642427061613,3.28579992,3263.2,3263.0,0.4]
[1642427063217,9.39,3263.1,3263.0,0.4]
[1642427063620,9.69,3263.1,3263.0,0.4]
[1642427064717,0.7664,3262.9,3262.2,2.63395094]
[1642427064959,0.44,3262.8,3262.2,2.63395094]
[1642427065157,0.44,3262.8,3262.3,0.00454739]
[1642427065559,2.75110701,3262.7,3262.3,0.00454739]
[1642427065758,0.44,3262.6,3262.3,0.00454739]
[1642427065962,2.27295,3262.6,3262.3,0.00454739]
[1642427066759,3.41033223,3262.5,3262.3,0.00454739]
[1642427066956,13.19,3262.4,3262.3,0.00454739]
[1642427067157,16.4763499,3262.4,3262.3,0.00454739]
[1642427067356,16.7763499,3262.4,3262.3,0.00454739]
[1642427068359,0.74,3262.4,3262.3,0.00454739]
[1642427069033,12.79,3262.4,3262.3,0.00454739]
[1642427069236,16.03746151,3262.4,3262.3,0.00454739]
[1642427070035,0.74,3262.4,3262.3,0.00454739]
[1642427070836,0.44,3262.4,3262.3,0.00454739]
[1642427071435,0.7663,3262.9,3262.3,0.00454739]
[1642427071639,0.71639994,3263.1,3262.3,0.00454739]
[1642427072036,0.71639994,3263.1,3262.5,1.5013692]
[1642427072236,0.71639994,3263.1,3262.3,0.00454739]
[1642427072462,0.71639994,3263.1,3262.6,0.00284212]
[1642427073463,1.01639994,3263.1,3262.6,0.00284212]
[1642427073663,2.6192955,3263.0,3262.6,0.00284212]
[1642427074063,2.6192955,3263.0,3262.5,0.00341054]
[1642427075871,2.6192955,3263.2,3262.5,0.00341054]
[1642427076069,2.9192955,3263.2,3262.5,0.00341054]
[1642427076602,3.6854955,3263.2,3262.5,0.00341054]
[1642427077601,4.4517755,3263.2,3262.5,0.00341054]
[1642427077804,2.6192955,3263.1,3262.5,0.00341054]
[1642427078201,2.6192955,3263.1,3262.6,1.15263793]
[1642427078602,2.6192955,3263.1,3262.7,0.00227369]
[1642427080058,2.6192955,3263.1,3262.7,1.18391822]
[1642427080454,2.6192955,3263.1,3262.8,0.00170527]
[1642427085803,2.6192955,3263.1,3262.4,0.00397896]
[1642427086304,2.6192955,3263.1,3262.6,1.43823313]
[1642427086705,2.6192955,3263.1,3262.7,0.00227369]
[1642427087578,2.6192955,3263.1,3262.7,1.00227369]
[1642427087780,2.6192955,3263.1,3262.8,0.01265411]
[1642427087979,2.6192955,3263.1,3262.8,0.01435938]
[1642427088176,2.6192955,3263.1,3262.9,0.00113685]
[1642427088978,2.9192955,3263.1,3262.9,0.00113685]
[1642427089178,0.3,3263.1,3262.9,0.00113685]
[1642427089579,2.6192955,3263.6,3262.9,0.00113685]
[1642427089878,0.3,3263.5,3262.8,0.00170527]
[1642427090278,0.00170527,3263.4,3262.8,0.00170527]
[1642427090479,0.00170527,3263.4,3262.7,0.00227369]
[1642427090678,1.4455837,3263.5,3262.7,0.00227369]
[1642427090679,0.00113685,3263.3,3262.7,0.00227369]
[1642427091305,0.00113685,3263.3,3262.5,0.00341054]
[1642427091505,0.00113685,3263.3,3262.4,0.00397896]
[1642427091805,1.5272376,3262.7,3262.4,0.00397896]
[1642427092009,3.61643856,3262.6,3262.4,0.00397896]
[1642427092218,0.3,3262.6,3262.4,0.00397896]
[1642427094413,13.16888005,3262.5,3262.4,0.00397896]
[1642427094611,2.91888005,3262.5,3262.4,0.00397896]
[1642427094818,9.91888005,3262.5,3262.4,0.00397896]
[1642427095051,9.61888005,3262.5,3262.4,0.00397896]
[1642427096855,19.26888005,3262.5,3262.4,0.00397896]
[1642427097256,9.61888005,3262.5,3262.4,0.00397896]
[1642427098259,2.61888005,3262.5,3262.4,0.00397896]
[1642427098902,2.61888005,3262.5,3261.6,1.31681222]
[1642427099102,3.31643856,3262.4,3261.4,1.0]
[1642427099303,3.31643856,3262.4,3260.9,5.0775677]
[1642427099304,3.61643856,3262.4,3261.7,0.00397897]
[1642427099502,0.74,3262.3,3261.7,0.00397897]
[1642427099702,0.74,3262.3,3261.3,0.00625266]
[1642427099900,0.76661,3262.1,3261.3,0.00625266]
[1642427100109,1.10948761,3261.9,3261.3,0.00625266]
[1642427100306,0.3,3261.8,3261.3,0.00625266]
[1642427101406,0.76659,3261.7,3261.3,0.00625266]
[1642427101607,1.23995935,3261.4,3261.2,0.00682108]
[1642427101808,0.76663,3261.5,3260.7,0.0096632]
[1642427102007,0.3,3261.4,3260.7,0.0096632]
[1642427102454,5.5975,3262.1,3260.7,0.0096632]
[1642427102660,5.5975,3262.1,3261.1,1.17995624]
[1642427102661,5.8975,3262.1,3261.1,1.17995624]
[1642427102860,1.4586,3262.1,3261.1,1.17995624]
[1642427103057,0.3,3262.1,3261.7,1.15029808]
[1642427103257,0.3,3262.1,3261.2,0.00682108]
[1642427103457,3.52282692,3262.4,3261.8,0.00341054]
[1642427103458,3.82282692,3262.4,3261.8,0.00341054]
[1642427103657,3.82282692,3262.4,3261.2,0.00682108]
[1642427103857,4.12282692,3262.4,3261.2,0.00682108]
[1642427104058,0.44,3262.5,3260.9,0.00852635]
[1642427104258,5.0938,3262.6,3260.9,0.77483365]
[1642427104756,3.3110904,3262.8,3261.7,1.13458312]
[1642427104958,7.89912692,3262.9,3261.7,1.13458312]
[1642427105157,0.00170527,3262.7,3262.2,1.38827188]
[1642427105363,2.6198707,3262.4,3262.2,1.38827188]
[1642427106309,2.6198707,3262.4,3262.2,2.8762292]
[1642427106713,0.00170527,3262.7,3262.2,2.8762292]
[1642427107115,0.00113684,3262.6,3262.2,2.8762292]
[1642427107515,0.00170527,3262.7,3262.2,2.8762292]
[1642427108022,0.00113684,3262.6,3262.2,2.8762292]
[1642427108315,2.92328124,3263.0,3262.2,2.8762292]
[1642427108618,0.00284211,3262.9,3262.7,1.27306054]
[1642427108818,0.00284211,3262.9,3261.8,0.00341054]
[1642427108819,3.61393251,3262.9,3261.8,0.00341054]
[1642427109017,1.06862369,3262.8,3261.8,0.00341054]
[1642427109315,0.9621833,3262.3,3261.6,0.00454739]
[1642427109514,2.2243666,3262.3,3261.6,0.00454739]
[1642427109717,2.2243666,3262.3,3262.1,1.18148131]
[1642427110149,1.9243666,3262.3,3262.2,0.00113685]
[1642427111553,2.2243666,3262.3,3262.2,0.00113685]
[1642427111752,4.8442373,3262.3,3262.2,0.00113685]
[1642427112758,4.8442373,3262.3,3262.0,1.29641786]
[1642427113161,4.8442373,3262.3,3262.1,0.00170527]
[1642427113356,4.5442373,3262.3,3262.0,1.28883813]
[1642427113556,4.8442373,3262.3,3262.0,1.28883813]
[1642427113803,4.8442373,3262.3,3261.5,1.0]
[1642427114209,2.2243666,3262.3,3261.6,0.00284212]
[1642427114410,0.3,3262.3,3261.6,1.29307487]
[1642427114609,0.9621833,3262.0,3261.6,1.29307487]
[1642427114810,1.9243666,3262.0,3261.7,0.0022737]
[1642427116211,1.9243666,3262.0,3261.4,0.00397897]
[1642427116611,1.9243666,3262.0,3261.4,0.30397897]
[1642427116812,1.9243666,3262.0,3261.4,0.3]
[1642427117012,1.9243666,3262.0,3261.5,0.00341054]
[1642427117467,1.15574037,3261.9,3261.5,0.00341054]
[1642427117667,1.15574037,3261.9,3261.1,2.72258659]
[1642427117668,1.15574037,3261.9,3261.2,0.00511581]
[1642427118065,0.3,3261.8,3261.2,0.00511581]
[1642427118469,3.5992217,3261.8,3261.2,0.00511581]
[1642427118665,3.5992217,3261.8,3261.1,0.00568424]
[1642427118865,0.74,3261.8,3261.1,0.00568424]
[1642427119464,3.96678022,3261.8,3261.1,0.00568424]
[1642427119667,2.62012736,3261.7,3261.1,0.00568424]
[1642427120065,2.2243666,3261.4,3261.1,0.00568424]
[1642427120466,2.2243666,3261.4,3260.8,0.30738951]
[1642427120666,2.2243666,3261.4,3260.9,0.00682108]
[1642427121069,2.2243666,3261.4,3260.8,0.00738951]
[1642427123313,2.2243666,3261.4,3261.2,1.56288032]
[1642427123515,2.2243666,3261.4,3261.2,2.82258846]
[1642427123716,2.2243666,3261.4,3261.3,0.00454739]
[1642427124118,0.44,3262.2,3261.5,0.05318177]
[1642427124318,0.00113684,3262.3,3262.0,0.01277362]
[1642427124516,0.00113684,3262.3,3262.0,0.80407362]
[1642427124977,0.00113684,3262.3,3262.0,0.7913]
[1642427125572,0.00113684,3262.3,3262.0,1.49788395]
[1642427126174,0.00113684,3262.3,3261.7,1.0]
[1642427126576,0.00113684,3262.3,3261.8,0.00170527]
[1642427126978,0.00113684,3262.3,3261.9,0.00113685]
[1642427127277,0.00113684,3262.3,3261.8,0.00170527]
[1642427129517,1.38488458,3262.2,3261.8,0.00170527]
[1642427129918,1.68488458,3262.2,3261.8,0.00170527]
[1642427130118,1.68488458,3262.2,3261.4,0.00397897]
[1642427130818,1.68488458,3262.2,3261.3,0.00454739]
[1642427131218,2.61966879,3262.1,3261.3,0.00454739]
[1642427131617,2.61966879,3262.1,3261.3,1.1026471]
[1642427131817,2.61966879,3262.1,3261.6,1.10803132]
[1642427132218,2.61966879,3262.1,3261.4,3.31111646]
[1642427132219,2.61966879,3262.1,3261.7,0.0022737]
[1642427132656,2.61966879,3262.1,3261.5,1.00341054]
[1642427132859,4.16023466,3262.1,3261.5,1.00341054]
[1642427133659,2.91966879,3262.1,3261.5,1.00341054]
[1642427133861,2.91966879,3262.1,3261.6,3.11770247]
[1642427134065,2.91966879,3262.1,3261.7,1.0]
[1642427134261,2.91966879,3262.1,3261.7,0.0022737]
[1642427134461,2.61966879,3262.0,3261.8,0.00170527]
[1642427134662,3.71613784,3262.0,3261.8,0.00170527]
[1642427135063,3.71613784,3262.0,3261.4,0.00397897]
[1642427135460,2.61966879,3262.0,3261.4,0.00397897]
[1642427139335,2.61966879,3262.0,3261.4,3.21916996]
[1642427139531,2.61966879,3262.0,3261.8,1.40137953]
[1642427139954,2.61966879,3262.0,3261.9,0.00113685]
[1642427143724,2.61966879,3262.0,3261.4,0.00397897]
[1642427143928,2.61966879,3262.0,3261.3,0.00454739]
[1642427144531,2.61966879,3262.0,3261.4,1.54901262]
[1642427144726,2.61966879,3262.0,3261.2,3.93692091]
[1642427144926,0.00341054,3261.9,3261.4,1.25876394]
[1642427145125,0.00341054,3261.9,3261.5,3.10287238]
[1642427145326,0.00284212,3261.8,3261.5,3.11530452]
[1642427145729,0.00227369,3261.7,3261.4,1.25876394]
[1642427146131,0.00170527,3261.6,3261.3,0.3]
[1642427146338,0.00170527,3261.6,3261.2,1.15356001]
[1642427146631,0.00113685,3261.5,3261.2,1.15356001]
[1642427147863,0.00113685,3261.5,3261.2,2.62488863]
[1642427148259,0.00113685,3261.5,3261.2,1.15356001]
[1642427149359,0.00113685,3261.5,3261.2,2.60139594]
[1642427149759,0.00113685,3261.5,3261.2,1.74783593]
[1642427149960,0.00113685,3261.5,3261.3,1.0]
[1642427150259,0.00113685,3261.5,3261.2,1.74783593]
[1642427151059,0.00113685,3261.5,3261.2,0.3]
[1642427151309,0.00113685,3261.5,3261.1,1.3]
[1642427151511,0.00113685,3261.5,3261.2,0.3]
[1642427151708,0.00113685,3261.5,3261.1,1.53261]
[1642427151914,0.00113685,3261.5,3261.2,1.0]
[1642427152116,0.00113685,3261.5,3261.2,0.3]
[1642427152313,0.00113685,3261.5,3261.1,1.53261]
[1642427152514,0.00113685,3261.5,3261.3,0.76635]
[1642427152914,0.00113685,3261.5,3261.3,1.06635]
[1642427153117,0.00113685,3261.5,3261.3,4.16126569]
[1642427153515,0.00113685,3261.5,3261.4,14.58899032]
[1642427153717,0.00113685,3261.5,3261.4,14.88899032]
[1642427154216,0.00113685,3261.5,3261.4,13.88899032]
[1642427154415,0.00113685,3261.5,3261.4,15.18899032]
[1642427154816,0.00113685,3261.5,3261.4,15.08549937]
[1642427155063,0.00113685,3261.5,3261.4,15.38549937]
[1642427155868,0.00113685,3261.5,3261.4,15.18899032]
[1642427156267,0.00113685,3261.5,3261.4,2.68899032]
[1642427156468,0.00113685,3261.5,3261.4,1.68899032]
[1642427156671,0.00113685,3261.5,3261.4,2.38899032]
[1642427156870,0.00113685,3261.5,3261.4,0.3]
[1642427157070,0.00113685,3261.5,3261.3,1.06635]
[1642427158072,0.00113685,3261.5,3261.3,2.27423353]
[1642427160405,0.00113685,3261.5,3261.3,6.14464772]
[1642427160606,0.00113685,3261.5,3261.4,17.19944419]
[1642427161006,0.00113685,3261.5,3261.4,22.13944419]
[1642427161206,2.61996659,3262.1,3262.0,1.32758762]